lending/lending_fUSD_20241014
["ID","MTS","AMOUNT","RATE_DAILY","PERIOD"]
[340232947,1728885039573,-152.32906312,0.0001812,2]
[340232948,1728885039582,-150.0,0.00018122,2]
[340232949,1728885039592,-150.0,0.00018134,2]
[340232950,1728885039602,-217.96975171,0.00018146,2]
[340232951,1728885039611,-151.13159485,0.00018148,2]
[340232952,1728885039621,-150.0,0.0001815,2]
[340232953,1728885039631,-150.0,0.00018153,2]
[340232954,1728885039640,-150.0,0.00018155,2]
[340232955,1728885039650,-150.0,0.00018157,2]
[340232956,1728885039660,-150.0,0.00018163,2]
[340232957,1728885039670,-150.0,0.00018165,2]
[340232958,1728885039680,-150.0,0.00018165,2]
[340232959,1728885039690,-150.0,0.00018165,2]
[340232960,1728885039700,-150.0,0.00018165,2]
[340232961,1728885039709,-150.0,0.00018169,2]
[340232962,1728885039718,-150.0,0.00018178,2]
[340232963,1728885039727,-150.0,0.00018201,2]
[340232964,1728885039737,-167.0,0.00018203,2]
[340232965,1728885039747,-1823.1071742,0.00018226,2]
[340232966,1728885039756,-74.98965841,0.00018226,2]
[340232971,1728885039966,-176.16588737,0.00018226,2]
[340232973,1728885039977,-176.4874838,0.00018226,2]
[340232975,1728885039987,-328.611515,0.00018226,2]
[340232977,1728885040000,-802.6771555,0.00018226,2]
[340232979,1728885040009,-1251.6907445,0.00018226,2]
[340232982,1728885040021,-1590.58144481,0.00018226,2]
[340233250,1728885042536,-7780.5062251,0.00018226,2]
[340233258,1728885042690,-259.4880914,0.00018226,2]
[340233259,1728885042709,-295.86000036,0.00018226,2]
[340233260,1728885042793,-2654.79921403,0.00018226,2]
[340233261,1728885042803,-3441.8872683,0.00018243,2]
[340233262,1728885042812,-1095.3350846,0.00018263,2]
[340233263,1728885042823,-228.2637038,0.00018263,2]
[340233264,1728885042833,-2500.0,0.00018317,2]
[340233265,1728885042842,-502.06336286,0.00018445,2]
[340233266,1728885042850,-150.0,0.00018601,2]
[340233267,1728885042859,-160.0,0.00018619,2]
[340233268,1728885042870,-1699.26651633,0.00018642,2]
[340233269,1728885042880,-4176.1315757,0.00018642,2]
[340233270,1728885042889,-500.0,0.00018664,2]
[340233271,1728885042901,-500.0,0.00018664,2]
[340233272,1728885042910,-152.85,0.00018687,2]
[340233273,1728885042919,-244.19,0.00018737,2]
[340233274,1728885042928,-167.0,0.00018803,2]
[340233275,1728885042938,-299.8284243,0.00018959,2]
[340233276,1728885042950,-1159.6215757,0.00018959,2]
[340233277,1728885042960,-150.0,0.00019034,2]
[340233278,1728885042969,-300.0,0.00019092,2]
[340233279,1728885042979,-5875.39809203,0.00019179,2]
[340233280,1728885042989,-167.0,0.00019404,2]
[340233281,1728885043000,-150.0,0.00019466,2]
[340233282,1728885043009,-335.31,0.00019486,2]
[340233283,1728885043019,-152.85,0.00019499,2]
[340233284,1728885043028,-5875.39809203,0.00019716,2]
[340233285,1728885043038,-500.0,0.0001976,2]
[340233286,1728885043047,-500.0,0.0001976,2]
[340233287,1728885043057,-161.88835304,0.00019814,2]
[340233288,1728885043066,-150.0,0.00019899,2]
[340233289,1728885043075,-3261.00844355,0.000199,2]
[340233290,1728885043093,-1979.18188074,0.000199,2]
[340233291,1728885043104,-256.52937571,0.000199,2]
[340233292,1728885043113,-50.0058313,0.000199,2]
[340233300,1728885045527,-10000.0,0.00011213,2]
[340233301,1728885045537,-503.51289974,0.000199,2]
[340233302,1728885045547,-201.67,0.00019924,2]
[340233303,1728885045556,-502.32754862,0.00019973,2]
[340233304,1728885045566,-501.12272238,0.00019973,2]
[340233305,1728885045576,-29602.9229094,0.0001998,4]
[340233306,1728885045585,-840.0,0.00019986,2]
[340233307,1728885045595,-108544.050668,0.0001999,4]
[340233308,1728885045604,-500.0,0.00019999,2]
[340233309,1728885045614,-500.0,0.00019999,2]
[340233310,1728885045623,-439.27274489,0.00019999,2]
[340233311,1728885045632,-120815.78351663,0.0002,2]
[340233312,1728885045647,-12181.45042317,0.0002,2]
[340233313,1728885045659,-5008.17589993,0.0002,2]
[340233314,1728885045671,-64002.02207683,0.0002,2]
[340233315,1728885045719,-1266.5677266,0.0002,2]
[340233316,1728885045809,-484.03540951,0.0002,2]
[340233317,1728885045827,-250.10479714,0.0002,2]
[340233318,1728885045903,-282.58601024,0.0002,2]
[340233319,1728885047371,-15709.27413895,0.0002,2]
[340233320,1728885047380,-406.32218234,0.0002,7]
[340233321,1728885047390,-800.0,0.0002,2]
[340233322,1728885047399,-167.0,0.00020005,2]
[340233323,1728885047408,-150.0,0.00020244,2]
[340233324,1728885047418,-5875.39809203,0.00020252,2]
[340233325,1728885047428,-150.0,0.00020332,2]
[340233326,1728885047437,-4933.8204849,0.00020398,4]
[340233327,1728885047447,-17255.3817491,0.00020398,4]
[340233328,1728885047456,-164.49640768,0.000205,2]
[340233329,1728885047466,-167.0,0.00020606,2]
[340233330,1728885047475,-150.0,0.00020619,4]
[340233331,1728885047485,-160.0,0.00020687,2]
[340233332,1728885047494,-150.0,0.00020764,2]
[340233333,1728885047505,-5875.39809203,0.00020789,2]
[340233334,1728885047514,-244.19,0.00020819,2]
[340233335,1728885047523,-500.0,0.00020856,2]
[340233336,1728885047533,-4933.8204849,0.00020896,4]
[340233337,1728885047542,-150.0,0.00020994,4]
[340233338,1728885047551,-150.0,0.00021197,2]
[340233339,1728885047561,-167.0,0.00021207,2]
[340233340,1728885047571,-1459.45,0.00021222,2]
[340233341,1728885047581,-5875.39809203,0.00021326,2]
[340233342,1728885047590,-150.0,0.00021368,4]
[340233343,1728885047600,-150.0,0.00021629,2]
[340233344,1728885047609,-4933.8204849,0.00021661,4]
[340233345,1728885047618,-150.0,0.00021743,4]
[340233346,1728885047628,-14801.4614547,0.00021888,4]
[340233347,1728885047637,-17255.3817491,0.00021888,4]
[340233348,1728885047647,-4933.8204849,0.00021892,4]
[340233349,1728885047657,-4933.8204849,0.00021898,4]
[340233350,1728885047666,-17255.3817491,0.00021898,4]
[340233351,1728885047675,-162.27007967,0.00021905,2]
[340233352,1728885047684,-14801.4614547,0.00021908,4]
[340233353,1728885047694,-17255.3817491,0.00021908,4]
[340233354,1728885047704,-1000.0,0.00021918,2]
[340233355,1728885047713,-1000.0,0.00021918,2]
[340233356,1728885047722,-1000.0,0.00021918,2]
[340233357,1728885047732,-1000.0,0.00021918,2]
[340233358,1728885047841,-1000.0,0.00021918,2]
[340233359,1728885047851,-1000.0,0.00021918,2]
[340233360,1728885047863,-1000.0,0.00021918,2]
[340233361,1728885047872,-1000.0,0.00021918,2]
[340233362,1728885047882,-1000.0,0.00021918,2]
[340233363,1728885047891,-1000.0,0.00021918,2]
[340233364,1728885047902,-1000.0,0.00021918,2]
[340233365,1728885047912,-1000.0,0.00021918,2]
[340233366,1728885047922,-1000.0,0.00021918,2]
[340233367,1728885047931,-1000.0,0.00021918,2]
[340233368,1728885047942,-1000.0,0.00021918,2]
[340233369,1728885047951,-1000.0,0.00021918,2]
[340233370,1728885047961,-1000.0,0.00021918,2]
[340233371,1728885047970,-1000.0,0.00021918,2]
[340233372,1728885047979,-1000.0,0.00021918,2]
[340233373,1728885047989,-1000.0,0.00021918,2]
[340233374,1728885047998,-1000.0,0.00021918,2]
[340233375,1728885048008,-1000.0,0.00021918,2]
[340233376,1728885048018,-1000.0,0.00021918,2]
[340233377,1728885048027,-1000.0,0.00021918,2]
[340233378,1728885048037,-1000.0,0.00021918,2]
[340233379,1728885048046,-1000.0,0.00021918,2]
[340233380,1728885048056,-1000.0,0.00021918,2]
[340233381,1728885048065,-1000.0,0.00021918,2]
[340233382,1728885048075,-1000.0,0.00021918,2]
[340233383,1728885048084,-1011.0,0.00021918,2]
[340233384,1728885048094,-447.39,0.00021918,2]
[340233385,1728885048104,-4933.8204849,0.00021932,4]
[340233386,1728885048114,-500.0,0.00021952,2]
[340233387,1728885048123,-500.0,0.00021952,2]
[340233388,1728885048132,-840.0,0.00021985,2]
[340233389,1728885048142,-850.0,0.00022,2]
[340233390,1728885048152,-150.0,0.00022062,2]
[340233391,1728885048161,-217.0,0.000221,2]
[340233392,1728885048171,-150.0,0.00022118,4]
[340233393,1728885048181,-9867.6409698,0.00022143,5]
[340233394,1728885048190,-9867.6409698,0.0002217,5]
[340233395,1728885048200,-17255.3817491,0.0002217,5]
[340233396,1728885048209,-19735.2819396,0.0002218,5]
[340233397,1728885048219,-17255.3817491,0.0002218,5]
[340233398,1728885048228,-690.03556586,0.00022188,2]
[340233399,1728885048238,-14801.4614547,0.0002219,5]
[340233400,1728885048247,-17255.3817491,0.0002219,5]
[340233401,1728885048260,-30183.87100361,0.000222,2]
[340233402,1728885048270,-4933.8204849,0.0002234,5]
[340233403,1728885048279,-14801.4614547,0.00022351,5]
[340233404,1728885048288,-17255.3817491,0.00022351,5]
[340233405,1728885048298,-19735.2819396,0.0002236,5]
[340233406,1728885048307,-51766.1452473,0.0002236,5]
[340233407,1728885048317,-69021.5269964,0.0002237,5]
[340233408,1728885048326,-11790.43805236,0.0002238,5]
[340233416,1728885492804,168.48,0.00010495,2]
[340233418,1728885566629,159.93,0.00010959,2]
[340233425,1728885933382,200.0,0.00010577,2]
[340233426,1728885951810,212.78,0.00026564,120]
[340233428,1728886065378,359.6333655,0.00027,60]
[340233453,1728886231730,-1071.0,0.00015,2]
[340233454,1728886231740,-1244.78,0.00016275,2]
[340233455,1728886231749,-168.0,0.00016976,2]
[340233456,1728886231758,-500.0,0.00017027,2]
[340233457,1728886231767,-150.0,0.00017076,2]
[340233458,1728886231776,-4320.29004849,0.00017076,2]
[340233459,1728886231786,-200.0,0.00017187,2]
[340233460,1728886231796,-300.0,0.00017225,2]
[340233461,1728886231805,-5896.08709276,0.00017226,2]
[340233462,1728886231816,-6406.44660724,0.00017226,2]
[340233463,1728886231825,-250.0,0.00017285,2]
[340233464,1728886231834,-1251.29109552,0.00017326,3]
[340233465,1728886231844,-250.0,0.00017331,2]
[340233466,1728886231853,-781.8515,0.00017425,2]
[340233467,1728886231862,-155.629252,0.00017525,2]
[340233468,1728886231871,-1758.8238,0.00017526,2]
[340233469,1728886231880,-150.0,0.00017532,2]
[340233470,1728886231890,-212.78,0.0001771,2]
[340233471,1728886231899,-1935.56,0.0001773,2]
[340233472,1728886231908,-23900.0,0.00017896,2]
[340233473,1728886231917,-181.8,0.00017896,2]
[340233474,1728886231926,-150.0,0.00017988,2]
[340233475,1728886231935,-200.0,0.00018072,2]
[340233476,1728886231944,-1251.29109553,0.00018086,3]
[340233477,1728886231953,-12035.7186,0.00018087,2]
[340233478,1728886231963,-897.5013,0.00018163,2]
[340233479,1728886231972,-1000.0,0.00018175,2]
[340233480,1728886231981,-201.99,0.00018186,2]
[340233481,1728886231991,-1000.0,0.00018186,2]
[340233482,1728886232000,-163.28083337,0.00018186,2]
[340233483,1728886232009,-326.88191441,0.00018187,2]
[340233484,1728886237878,-1557.0399574,0.00018187,2]
[340233485,1728886237978,-130814.91362819,0.00018187,2]
[340233486,1728886237988,-300.0,0.00018238,2]
[340233487,1728886237998,-832.0,0.00018312,2]
[340233488,1728886238008,-150.0,0.00018444,2]
[340233489,1728886238018,-1244.78,0.00018539,2]
[340233490,1728886238027,-2751.0,0.00018542,2]
[340233491,1728886238037,-150.0,0.00018548,2]
[340233492,1728886238047,-500.0,0.00018664,2]
[340233493,1728886238056,-500.0,0.00018664,2]
[340233494,1728886238066,-158.95,0.00018723,2]
[340233495,1728886238075,-161.33,0.00018754,2]
[340233496,1728886238085,-150.0,0.00018901,2]
[340233497,1728886238094,-180.0,0.00018962,2]
[340233498,1728886238103,-167.0,0.00019003,2]
[340233499,1728886238112,-168.0,0.00019098,2]
[340233500,1728886238121,-150.0,0.00019357,2]
[340233501,1728886238131,-3889.08082472,0.00019558,2]
[340233502,1728886238140,-300.0,0.00019608,2]
[340233503,1728886238150,-167.0,0.00019631,2]
[340233504,1728886238159,-500.0,0.0001976,2]
[340233505,1728886238168,-150.0,0.00019813,2]
[340233506,1728886238178,-513.0526,0.00019964,2]
[340233507,1728886238187,-3889.08082472,0.00020032,2]
[340233508,1728886238196,-150.0,0.00020244,2]
[340233509,1728886238206,-167.0,0.00020258,2]
[340233510,1728886238218,-150.0,0.00020269,2]
[340233511,1728886238228,-563.95,0.00020309,2]
[340233512,1728886238237,-3889.08082472,0.00020505,2]
[340233513,1728886238248,-832.0,0.00020601,2]
[340233514,1728886238257,-150.0,0.00020725,2]
[340233515,1728886238268,-1244.78,0.00020803,2]
[340233516,1728886238278,-500.0,0.00020856,2]
[340233518,1728886238288,-167.0,0.00020885,2]
[340233520,1728886238300,-1801.61516399,0.00020979,2]
[340233523,1728886238312,-2087.46566073,0.00020979,2]
[340233525,1728886238321,-150.0,0.00021181,2]
[340233526,1728886238331,-168.0,0.0002122,2]
[340233528,1728886238340,-3538.58458663,0.00021453,2]
[340233529,1728886238352,-350.49623809,0.00021453,2]
[340233530,1728886238361,-167.0,0.00021513,2]
[340233531,1728886238371,-150.0,0.00021637,2]
[340233532,1728886238380,-411.49784241,0.00021825,2]
[340233533,1728886238389,-9406.7710517,0.00021867,2]
[340233534,1728886238400,-253.7732008,0.00021867,2]
[340233535,1728886239896,-456.46,0.0002039,2]
[340233536,1728886239907,-8484.97504253,0.00021867,2]
[340233537,1728886239916,-372.82,0.00021918,2]
[340233538,1728886239927,-3889.08082472,0.00021926,2]
[340233539,1728886239936,-49.88836653,0.00021952,2]
[340233540,1728886239948,-450.11163347,0.00021952,2]
[340233541,1728886239958,-217.0,0.0002208,2]
[340233542,1728886239968,-150.0,0.00022094,2]
[340233543,1728886239977,-411.49784242,0.000221,2]
[340233544,1728886239987,-150.0,0.00022104,2]
[340233545,1728886239997,-150.0,0.00022105,2]
[340233546,1728886240007,-150.0,0.00022113,2]
[340233547,1728886240018,-150.0,0.00022117,2]
[340233548,1728886240028,-150.0,0.00022118,2]
[340233549,1728886240037,-150.0,0.0002212,2]
[340233550,1728886240048,-150.0,0.00022124,2]
[340233551,1728886240062,-150.0,0.00022125,2]
[340233552,1728886240073,-150.0,0.00022126,2]
[340233553,1728886240083,-150.0,0.00022128,2]
[340233554,1728886240093,-150.0,0.00022131,2]
[340233555,1728886240102,-115.75750315,0.00022133,2]
[340233556,1728886240114,-34.24249685,0.00022133,2]
[340233557,1728886240124,-167.0,0.0002214,2]
[340233558,1728886240134,-150.0,0.0002214,2]
[340233559,1728886240145,-150.0,0.00022146,2]
[340233560,1728886240155,-29.87750294,0.0002215,2]
[340233561,1728886240182,-120.12249706,0.0002215,2]
[340233562,1728886240192,-150.0,0.00022154,2]
[340233563,1728886240201,-210.05810934,0.00022154,2]
[340233564,1728886240211,-150.0,0.00022155,2]
[340233566,1728886240224,-150.0,0.00022158,2]
[340233568,1728886240234,-7500.0,0.00022159,2]
[340233570,1728886240244,-328.72178853,0.0002216,2]
[340233572,1728886240254,-150.0,0.00022163,2]
[340233574,1728886240265,-150.0,0.00022165,2]
[340233576,1728886240275,-150.0,0.00022165,2]
[340233578,1728886240285,-150.0,0.00022166,2]
[340233580,1728886240297,-150.0,0.00022171,2]
[340233582,1728886240306,-11346.45,0.00022176,2]
[340233584,1728886240315,-150.0,0.00022179,2]
[340233586,1728886240325,-150.0,0.0002218,2]
[340233588,1728886240335,-150.0,0.00022183,2]
[340233590,1728886240344,-150.0,0.00022184,2]
[340233592,1728886240354,-150.0,0.00022187,2]
[340233594,1728886240363,-150.0,0.00022192,2]
[340233596,1728886240373,-150.0,0.00022193,2]
[340233598,1728886240383,-150.0,0.00022193,2]
[340233600,1728886240392,-150.0,0.00022193,2]
[340233602,1728886240402,-328.72178851,0.00022194,2]
[340233604,1728886240411,-150.0,0.00022199,2]
[340233606,1728886240420,-150.0,0.00022199,2]
[340233608,1728886240430,-150.0,0.00022208,2]
[340233610,1728886240439,-150.0,0.00022208,2]
[340233612,1728886240448,-150.0,0.00022209,2]
[340233614,1728886240459,-150.0,0.00022212,2]
[340233616,1728886240468,-150.0,0.00022213,2]
[340233618,1728886240477,-150.0,0.00022213,2]
[340233620,1728886240487,-150.0,0.00022215,2]
[340233622,1728886240496,-150.0,0.00022216,2]
[340233624,1728886240505,-150.0,0.00022216,2]
[340233626,1728886240515,-150.0,0.00022218,2]
[340233628,1728886240524,-150.0,0.00022221,2]
[340233630,1728886240534,-150.0,0.00022227,2]
[340233632,1728886240543,-150.0,0.00022228,2]
[340233634,1728886240553,-328.72178851,0.00022229,2]
[340233636,1728886240562,-150.0,0.00022231,2]
[340233637,1728886240571,-150.0,0.00022242,2]
[340233638,1728886240581,-150.0,0.00022247,2]
[340233639,1728886240590,-150.0,0.00022247,2]
[340233640,1728886240600,-150.0,0.00022252,2]
[340233641,1728886240609,-150.0,0.00022253,2]
[340233642,1728886240618,-150.0,0.00022256,2]
[340233643,1728886240627,-150.0,0.00022259,2]
[340233644,1728886240637,-150.0,0.00022259,2]
[340233645,1728886240646,-150.0,0.00022259,2]
[340233646,1728886240655,-24948.1531502,0.00022259,5]
[340233647,1728886240664,-150.0,0.0002226,2]
[340233649,1728886240673,-328.72178851,0.00022263,2]
[340233650,1728886240682,-150.0,0.00022264,2]
[340233652,1728886240694,-150.0,0.00022268,2]
[340233654,1728886240704,-150.0,0.00022269,2]
[340233656,1728886240713,-503.21870875,0.00022273,2]
[340233658,1728886240723,-150.0,0.00022274,2]
[340233660,1728886240732,-150.0,0.00022274,2]
[340233662,1728886240742,-344.54293076,0.00022274,2]
[340233663,1728886240751,-150.0,0.00022275,2]
[340233665,1728886240760,-150.0,0.00022275,2]
[340233667,1728886240769,-150.0,0.00022276,2]
[340233670,1728886240779,-150.0,0.00022277,2]
[340233672,1728886240789,-150.0,0.00022279,2]
[340233674,1728886240799,-150.0,0.00022284,2]
[340233676,1728886240808,-150.0,0.00022291,2]
[340233678,1728886240818,-328.72178851,0.00022297,2]
[340233680,1728886240827,-169.2339584,0.00022304,2]
[340233682,1728886240836,-150.0,0.00022306,2]
[340233683,1728886240847,-150.0,0.00022308,2]
[340233685,1728886240856,-150.0,0.0002231,2]
[340233688,1728886240866,-150.0,0.00022311,2]
[340233690,1728886240875,-150.0,0.00022319,2]
[340233692,1728886240885,-150.0,0.00022321,2]
[340233694,1728886240894,-150.0,0.00022325,2]
[340233696,1728886240903,-300.0,0.00022325,2]
[340233698,1728886240913,-150.0,0.00022326,2]
[340233700,1728886240924,-150.0,0.0002233,2]
[340233702,1728886240933,-328.72178851,0.00022331,2]
[340233704,1728886240943,-150.0,0.00022333,2]
[340233706,1728886240954,-150.0,0.00022335,2]
[340233708,1728886240963,-150.0,0.00022337,2]
[340233710,1728886240972,-150.0,0.00022337,2]
[340233712,1728886240982,-344.54293074,0.00022337,2]
[340233714,1728886240991,-150.0,0.00022338,2]
[340233716,1728886241000,-150.0,0.00022339,2]
[340233718,1728886241009,-24948.1531502,0.00022339,5]
[340233720,1728886241019,-150.0,0.00022345,2]
[340233722,1728886241029,-150.0,0.00022346,2]
[340233724,1728886241039,-150.0,0.00022349,2]
[340233726,1728886241049,-150.0,0.00022352,2]
[340233728,1728886241059,-150.0,0.00022356,2]
[340233730,1728886241068,-150.0,0.00022362,2]
[340233732,1728886241077,-150.0,0.00022363,2]
[340233734,1728886241087,-24948.1531502,0.00022365,5]
[340233736,1728886241096,-328.72178851,0.00022366,2]
[340233738,1728886241105,-150.0,0.00022367,2]
[340233740,1728886241115,-150.0,0.00022367,2]
[340233742,1728886241124,-150.0,0.0002237,2]
[340233744,1728886241134,-24948.1531502,0.0002237,5]
[340233746,1728886241144,-150.0,0.00022372,2]
[340233748,1728886241153,-150.0,0.00022372,2]
[340233750,1728886241162,-150.0,0.00022374,2]
[340233752,1728886241172,-5461.0794805,0.00022374,2]
[340233754,1728886241181,-2242.0363438,0.00022374,2]
[340233756,1728886241191,-245.8310273,0.00022374,2]
[340233758,1728886241200,-27414.6846984,0.00022374,2]
[340233760,1728886241209,-2732.8559639,0.00022374,2]
[340233762,1728886241221,-190.2197532,0.00022374,2]
[340233764,1728886241231,-24948.1531502,0.00022375,5]
[340233766,1728886241240,-4895.9447915,0.00022375,2]
[340233768,1728886241249,-1986.2615043,0.00022375,2]
[340233770,1728886241258,-245.8310273,0.00022375,2]
[340233771,1728886241269,-24287.1767085,0.00022375,2]
[340233773,1728886241278,-2421.0876924,0.00022375,2]
[340233776,1728886241287,-200.0,0.0002238,2]
[340233777,1728886241298,-24948.1531502,0.0002238,5]
[340233779,1728886241307,-15979.8941629,0.0002238,5]
[340233781,1728886241317,-190.2197532,0.00022382,2]
[340233784,1728886241327,-4330.8101025,0.00022385,2]
[340233786,1728886241336,-1730.4866648,0.00022385,2]
[340233788,1728886241346,-245.8310273,0.00022385,2]
[340233790,1728886241355,-21159.6687186,0.00022385,2]
[340233792,1728886241364,-2109.3194209,0.00022385,2]
[340233793,1728886241373,-190.2197532,0.00022385,2]
[340233795,1728886241383,-159.10157046,0.0002239,2]
[340233797,1728886241391,-192.2104219,0.0002239,2]
[340233799,1728886241401,-74844.4594505,0.0002239,5]
[340233801,1728886241410,-63919.5766516,0.0002239,5]
[340233803,1728886241419,-24948.1531502,0.00022397,5]
[340233805,1728886241429,-15979.8941629,0.00022397,5]
[340233807,1728886241438,-5800.0,0.000224,2]
[340233809,1728886241448,-86702.63597654,0.000224,2]
[340233811,1728886241458,-2842.72998037,0.000224,2]
[340233813,1728886241467,-192.21042189,0.000224,2]
[340233815,1728886241476,-509.81875586,0.000224,2]
[340233817,1728886241485,-175.97,0.000224,31]
[340233819,1728886241494,-2000.0,0.000224,2]
[340233820,1728886241504,-2000.0,0.000224,2]
[340233822,1728886241512,-2000.0,0.000224,2]
[340233824,1728886241522,-2000.0,0.000224,2]
[340233826,1728886241531,-2000.0,0.000224,2]
[340233828,1728886241540,-2000.0,0.000224,2]
[340233830,1728886241550,-2000.0,0.000224,2]
[340233832,1728886241559,-169.23395839,0.000224,2]
[340233835,1728886241569,-3889.08082472,0.000224,2]
[340233836,1728886241579,-328.72178851,0.000224,2]
[340233838,1728886241588,-9847.97779812,0.000224,2]
[340233840,1728886241598,-344.54293074,0.000224,2]
[340233842,1728886241607,-564.02705471,0.000224,2]
[340233844,1728886241616,-322.60009065,0.000224,2]
[340233846,1728886241625,-5036.68949859,0.000224,2]
[340233848,1728886241634,-328.98113812,0.000224,2]
[340233882,1728886242741,-549.999999,0.00011632,2]
[340233885,1728886242843,-564.74894883,0.00011632,2]
[340233886,1728886242855,-500.24863749,0.00011632,2]
[340233887,1728886243028,-514.8086882,0.00011632,2]
[340233942,1728886392289,550.0,0.0001,2]
[340233944,1728886465603,629.19263905,0.00027,60]
[340233948,1728886661154,156.02,0.00010959,2]
[340233960,1728887108315,600000.0,0.00011,2]
[340233961,1728887129634,963.11964229,0.000101,2]
[340233962,1728887155517,1707.27060045,6.94e-05,2]
[340233970,1728887279415,1648.51984069,0.0001,2]
[340233994,1728887431834,-703.37788318,0.0001078,2]
[340233995,1728887431846,-296.62211682,0.0001078,2]
[340233996,1728887431855,-300.0,0.00010879,2]
[340233997,1728887431865,-150.0,0.00010879,2]
[340233998,1728887431874,-1058.77094118,0.0001088,2]
[340233999,1728887431886,-201587.19540831,0.0001088,2]
[340234000,1728887431897,-640.09000008,0.0001088,2]
[340234001,1728887431914,-420.44421669,0.0001088,2]
[340234002,1728887431926,-340.78735789,0.0001088,2]
[340234003,1728887431937,-5878.67181557,0.0001088,2]
[340234004,1728887431949,-1951.37137078,0.0001088,2]
[340234005,1728887431961,-1198.16775,0.0001088,2]
[340234006,1728887431972,-500.0,0.0001088,2]
[340234007,1728887431983,-255.5570155,0.0001088,2]
[340234008,1728887431995,-554.04576987,0.0001088,2]
[340234009,1728887432011,-389.06000051,0.0001088,2]
[340234010,1728887432022,-323.522802,0.0001088,2]
[340234036,1728887437892,-4176.55014776,0.0001088,2]
[340234037,1728887437903,-275.96458678,0.0001088,2]
[340234038,1728887437914,-773.44949059,0.0001088,2]
[340234039,1728887438041,-171682.25904037,0.0001088,2]
[340234040,1728887438051,-1754.26405669,0.00010899,2]
[340234041,1728887438060,-157.11,0.00010959,2]
[340234042,1728887438076,-500.0,0.00010999,2]
[340234043,1728887438087,-500.0,0.00010999,2]
[340234044,1728887438097,-429.87627463,0.00010999,2]
[340234045,1728887438106,-259.57178787,0.00010999,2]
[340234046,1728887438115,-500.0,0.00010999,2]
[340234047,1728887438124,-795135.23859419,0.00011,2]
[340234048,1728887438136,-49022.48890501,0.00011,2]
[340234049,1728887438147,-310.24010705,0.00011,2]
[340234050,1728887438160,-29983.78919819,0.00011,2]
[340234051,1728887438171,-537.13002854,0.00011,2]
[340234052,1728887438182,-110120.48755108,0.00011,2]
[340234053,1728887438193,-613.47997146,0.00011,2]
[340234054,1728887438232,-1826.19952413,0.00011,2]
[340234055,1728887438244,-543.17974251,0.00011,2]
[340234058,1728887439909,-3446.62800957,0.00011,2]
[340234059,1728887439921,-5038.76056,0.00011,2]
[340234060,1728887439997,-6000.0,0.00011,2]
[340234061,1728887440010,-814.63064899,0.00011,2]
[340234062,1728887440021,-455.99281839,0.00011,2]
[340234063,1728887440082,-400.69017034,0.00011,2]
[340234064,1728887440093,-393.00514,0.00011,2]
[340234069,1728887442820,-328.77832839,0.00011,2]
[340234070,1728887443163,-47168.67307927,0.00011,2]
[340234074,1728887445822,-61529.04051777,0.00011,2]
[340234075,1728887445967,-32700.00002493,0.00011,2]
[340234076,1728887446046,-435.93874686,0.00011,2]
[340234077,1728887446058,-1203.491268,0.00011,2]
[340234144,1728887916611,-9723.1084,0.00010779,2]
[340234145,1728887916632,-261.7665,0.0001078,2]
[340234146,1728887916653,-1697.00065192,0.0001089,2]
[340234147,1728887916673,-1000.0,0.000109,2]
[340234148,1728887916698,-2484.53504385,0.000109,2]
[340234149,1728887916719,-169.22076499,0.000109,2]
[340234150,1728887916741,-500.0,0.000109,2]
[340234151,1728887916763,-162.83702668,0.000109,2]